[Event "Bangabandhu Premier Div League 2023-24"]
[Site "Dhaka"]
[Date "2024.02.02"]
[Round "2.12"]
[White "Anata, Choudhury"]
[Black "Suvradeepta, Das"]
[Result "1/2-1/2"]
[ECO "C95"]
[WhiteElo "2196"]
[BlackElo "2141"]
[Annotator "RC"]
[PlyCount "115"]
[EventDate "2024.02.01"]
[EventCountry "BAN"]
[SourceTitle "playchess.com"]
[Source "ChessBase"]
[SourceQuality "1"]
[TimeControl "40/5400+30:1800+30"]

1. e4 {[%emt 1:31:00]} e5 {[%emt 0:01:58]} 2. Nf3 {[%emt 0:00:00]} Nc6 {[%emt 0:00:07]} 3. Bb5 {[%emt 0:00:00]} a6 {[%emt 0:00:29]} 4. Ba4 {[%emt 0:00:00]} Nf6 {[%emt 0:00:12]} 5. O-O {[%emt 0:00:00]} Be7 {[%emt 0:00:05]} 6. d3 {[%emt 0:00:00]} d6 {[%emt 0:03:13]} 7. c3 {[%emt 0:00:00]} O-O {[%emt 0:00:43]} 8. Re1 b5 {[%emt 0:00:09]} 9. Bc2 Bb7 10. Nbd2 {[%emt 0:00:00]} Nb8 {[%emt 0:08:34]} 11. d4 {[%emt 0:00:00]} Nbd7 {[%emt 0:00:21]} 12. a4 {[%emt 0:00:00]} c5 {[%emt 0:07:28]} 13. Nf1 {[%emt 0:00:00]} Re8 {[%emt 0:01:03]} 14. Ng3 {[%emt 0:00:00]} Bf8 {[%emt 1:13:08]} 15. d5 {[%emt 0:00:00]} g6 {[%emt 0:00:00]} 16. h3 {[%emt 0:00:00]} c4 {[%emt 0:00:00]} 17. Bg5 {[%emt 0:00:00]} h6 {[%emt 0:00:00]} 18. Be3 {[%emt 0:00:00]} Kh7 {[%emt 0:00:00]} 19. Nh2 {[%emt 0:00:00]} Bg7 {[%emt 0:00:00]} 20. Ng4 {[%emt 0:09:30]} Nxg4 {[%emt 0:00:00]} 21. hxg4 {[%emt 0:00:00]} Qh4 {[%emt 0:00:00]} 22. Nf1 {[%emt 0:00:00]} Reb8 {[%emt 0:00:00]} 23. axb5 {[%emt 0:00:00]} axb5 {[%emt 0:00:00]} 24. Ba7 {[%emt 0:00:00]} Rh8 {[%emt 0:00:00]} 25. Re3 {[%emt 0:00:00]} Qe7 {[%emt 0:00:00]} 26. Rh3 {[%emt 0:00:00]} Nf6 {[%emt 0:00:00]} 27. g5 {[%emt 0:00:00]} Nh5 {[%emt 0:00:00]} 28. Be3 {[%emt 0:00:00]} Rxa1 {[%emt 0:00:00]} 29. Qxa1 {[%emt 0:00:00]} Ra8 {[%emt 0:07:30]} 30. Qc1 {[%emt 0:00:00]} Bc8 {[%emt 0:00:00]} 31. Rh1 {[%emt 0:00:00]} Nf4 {[%emt 0:00:00]} 32. Bxf4 {[%emt 0:00:00]} exf4 {[%emt 0:00:00]} 33. Qxf4 {[%emt 0:00:00]} h5 {[%emt 0:00:09]} 34. g3 {[%emt 0:00:00]} b4 {[%emt 0:01:23]} 35. e5 {[%emt 0:06:53]} Bxe5 {[%emt 0:00:13]} 36. Qxc4 {[%emt 0:00:09]} bxc3 {[%emt 0:00:10]} 37. bxc3 {[%emt 0:00:07]} Kg8 {[%emt 0:01:20]} 38. Kg2 {[%emt 0:01:05]} Bb7 {[%emt 0:01:15]} 39. Ne3 {[%emt 0:00:43]} Rc8 {[%emt 0:00:00]} 40. Qe4 {[%emt 0:01:03]} Rxc3 {[%emt 0:00:08]} 41. Rb1 {[%emt 0:06:45]} Qc7 {[%emt 0:07:14]} 42. Bd3 {[%emt 0:14:41]} Rc1 {[%emt 0:07:18]} 43. Rxc1 {[%emt 0:02:17]} Qxc1 {[%emt 0:00:03]} 44. Qc4 {[%emt 0:00:56]} Qb2 {[%emt 0:04:52]} 45. Qb5 {[%emt 0:01:47]} Qxb5 {[%emt 0:09:08]} 46. Bxb5 {[%emt 0:00:07]} Bd4 {[%emt 0:00:09]} 47. Bc6 {[%emt 0:00:13]} Ba6 {[%emt 0:01:18]} 48. Kf3 {[%emt 0:00:12]} Bd3 {[%emt 0:00:50]} 49. Ba4 {[%emt 0:01:11]} Kg7 {[%emt 0:01:08]} 50. Bc2 {[%emt 0:00:22]} Ba6 {[%emt 0:02:24]} 51. Ke4 {[%emt 0:02:03]} Bb6 {[%emt 0:00:07]} 52. Bd3 {[%emt 0:00:24]} Bc8 {[%emt 0:00:14]} 53. Be2 {[%emt 0:01:17]} f6 {[%emt 0:00:46]} 54. gxf6+ {[%emt 0:00:36]} Kxf6 {[%emt 0:00:04]} 55. f4 {[%emt 0:01:24]} Bc5 {[%emt 0:00:39]} 56. Bd3 {[%emt 0:01:14]} Bf5+ {[%emt 0:00:49]} 57. Nxf5 {[%emt 0:00:11]} gxf5+ {[%emt 0:00:11]} 58. Kf3 {[%emt 0:03:20]} 1/2-1/2

[Event "Bangabandhu Premier Div League 2023-24"]
[Site "Dhaka"]
[Date "2024.02.03"]
[Round "3.1"]
[White "Rathanvel, V S"]
[Black "Abu Sufian, Shakil"]
[Result "1/2-1/2"]
[ECO "B32"]
[WhiteElo "2474"]
[BlackElo "2199"]
[Annotator "ChessBase"]
[PlyCount "89"]
[EventDate "2024.02.01"]
[EventCountry "BAN"]
[SourceTitle "playchess.com"]
[Source "ChessBase"]
[SourceQuality "1"]
[TimeControl "40/5400+30:1800+30"]

1. e4 {[%emt 0:00:03]} c5 {[%emt 0:00:48]} 2. Nf3 {[%emt 0:00:28]} Nc6 {[%emt 0:00:05]} 3. d4 {[%emt 0:02:27]} cxd4 {[%emt 0:00:08]} 4. Nxd4 {[%emt 0:00:04]} e5 {[%emt 0:00:07]} 5. Nb5 {[%emt 0:00:17]} d6 {[%emt 0:00:03]} 6. N1c3 {[%emt 0:00:36]} a6 {[%emt 0:00:23]} 7. Na3 {[%emt 0:00:11]} Be7 {[%emt 0:00:10]} 8. Nc4 {[%emt 0:00:50]} b5 {[%emt 0:00:11]} 9. Ne3 {[%emt 0:00:06]} Nf6 {[%emt 0:00:09]} 10. Bd3 {[%emt 0:06:09]} Nb4 {[%emt 0:00:30]} 11. Be2 {[%emt 0:01:31]} O-O {[%emt 0:00:11]} 12. O-O {[%emt 0:02:04]} Be6 {[%emt 0:00:08]} 13. a3 {[%emt 0:03:29]} Nc6 {[%emt 0:00:03]} 14. Ned5 {[%emt 0:16:42]} Nd4 {[%emt 0:07:37]} 15. Bd3 {[%emt 0:09:43]} Nxd5 {[%emt 0:04:10]} 16. Nxd5 {[%emt 0:07:18]} Bg5 {[%emt 0:02:17]} 17. c3 {[%emt 0:04:17]} Bxc1 {[%emt 0:00:17]} 18. Rxc1 {[%emt 0:00:05]} Nc6 {[%emt 0:00:28]} 19. Ne3 {[%emt 0:00:49]} Qb6 {[%emt 0:16:09]} 20. Qe2 {[%emt 0:10:36]} Rfc8 {[%emt 0:13:50]} 21. b4 {[%emt 0:01:17]} Ra7 {[%emt 0:02:42]} 22. Qd2 {[%emt 0:09:59]} Ne7 {[%emt 0:05:53]} 23. Rfd1 {[%emt 0:03:53]} Rac7 {[%emt 0:02:49]} 24. Be2 {[%emt 0:01:53]} Rc6 {[%emt 0:00:44]} 25. Bg4 {[%emt 0:00:11]} Qd8 {[%emt 0:11:50]} 26. Bxe6 {[%emt 0:03:20]} fxe6 {[%emt 0:00:01]} 27. Qa2 {[%emt 0:00:08]} Kf7 {[%emt 0:02:22]} 28. Rd3 {[%emt 0:00:53]} Ng8 {[%emt 0:04:39]} 29. g3 {[%emt 0:07:49]} Nf6 {[%emt 0:04:37]} 30. f3 {[%emt 0:00:09]} Qb6 {[%emt 0:00:42]} 31. Kg2 {[%emt 0:00:08]} Ke7 {[%emt 0:00:24]} 32. Qd2 {[%emt 0:05:10]} Qc7 {[%emt 0:01:55]} 33. Kh1 {[%emt 0:01:42]} h6 {[%emt 0:01:23]} 34. Qg2 {[%emt 0:01:40]} Rf8 {[%emt 0:05:36]} 35. Qd2 {[%emt 0:01:24]} Nd7 {[%emt 0:01:07]} 36. f4 {[%emt 0:00:30]} Nf6 {[%emt 0:06:59]} 37. Qg2 {[%emt 0:00:10]} exf4 {[%emt 0:00:10]} 38. gxf4 {[%emt 0:00:01]} Rf7 {[%emt 0:04:31]} 39. f5 {[%emt 0:01:06]} e5 {[%emt 0:00:09]} 40. Qf3 {[%emt 0:00:45]} Kf8 {[%emt 0:00:26]} 41. Nd5 {[%emt 0:10:47]} Nxd5 {[%emt 0:00:24]} 42. Rxd5 {[%emt 0:00:07]} Rc4 {[%emt 0:03:17]} 43. Qd3 {[%emt 0:01:59]} Rf6 {[%emt 0:00:09]} 44. Rc2 {[%emt 0:00:50]} Kg8 {[%emt 0:01:37]} 45. Kg1 {[%emt 0:02:22]} 1/2-1/2

[Event "Bangabandhu Premier Div League 2023-24"]
[Site "Dhaka"]
[Date "2024.02.03"]
[Round "3.1"]
[White "Mohammad Fahad, Rahman"]
[Black "Mehdi Hasan Parag"]
[Result "1-0"]
[ECO "C84"]
[WhiteElo "2418"]
[BlackElo "2171"]
[Annotator "RC"]
[PlyCount "65"]
[EventDate "2024.02.01"]
[EventCountry "BAN"]
[SourceTitle "playchess.com"]
[Source "ChessBase"]
[SourceQuality "1"]
[TimeControl "40/5400+30:1800+30"]

1. e4 {[%emt 0:00:10]} e5 {[%emt 0:00:06]} 2. Nf3 {[%emt 0:00:16]} Nc6 {[%emt 0:00:05]} 3. Bb5 {[%emt 0:00:16]} a6 {[%emt 0:00:03]} 4. Ba4 {[%emt 0:00:18]} Nf6 {[%emt 0:00:05]} 5. O-O {[%emt 0:00:13]} Be7 {[%emt 0:00:09]} 6. d3 {[%emt 0:00:46]} b5 {[%emt 0:00:14]} 7. Bb3 {[%emt 0:00:06]} d6 {[%emt 0:00:10]} 8. a4 {[%emt 0:01:27]} b4 {[%emt 0:00:10]} 9. a5 {[%emt 0:08:14]} O-O {[%emt 0:00:14]} 10. c3 {[%emt 0:00:40]} Rb8 {[%emt 0:00:03]} 11. Nbd2 {[%emt 0:01:08]} h6 {[%emt 1:34:41]} 12. h3 {[%emt 0:10:05]} Re8 {[%emt 0:00:00]} 13. Re1 {[%emt 0:01:05]} Bf8 {[%emt 0:00:00]} 14. d4 {[%emt 0:01:09]} bxc3 {[%emt 0:01:30]} 15. bxc3 {[%emt 0:00:09]} exd4 {[%emt 0:00:30]} 16. cxd4 {[%emt 0:11:21]} Nb4 {[%emt 0:00:00]} 17. d5 {[%emt 1:01:37]} c5 {[%emt 0:01:00]} 18. Bc2 {[%emt 0:00:30]} Bd7 {[%emt 0:00:00]} 19. Nc4 {[%emt 0:00:00]} Bb5 {[%emt 0:00:00]} 20. Nb6 {[%emt 0:01:00]} Rb7 {[%emt 0:01:30]} 21. Bb2 {[%emt 0:00:30]} Nd7 {[%emt 0:00:30]} 22. Nxd7 {[%emt 0:00:00]} Rxd7 {[%emt 0:00:00]} 23. Bc3 {[%emt 0:00:00]} Be7 {[%emt 0:01:00]} 24. Bxb4 {[%emt 0:00:00]} cxb4 {[%emt 0:00:00]} 25. Bd3 {[%emt 0:00:00]} Rb7 {[%emt 0:00:00]} 26. Nd4 {[%emt 0:02:30]} Bf6 {[%emt 0:00:00]} 27. Bxb5 {[%emt 0:00:00]} Bxd4 {[%emt 0:00:00]} 28. Bxe8 {[%emt 0:00:00]} Bxa1 {[%emt 0:00:00]} 29. Bc6 {[%emt 0:00:00]} Bc3 {[%emt 0:00:00]} 30. Bxb7 {[%emt 0:00:00]} Bxe1 {[%emt 0:03:30]} 31. Qxe1 {[%emt 0:00:00]} Qxa5 {[%emt 0:00:00]} 32. e5 {[%emt 0:03:00]} Qb6 {[%emt 0:00:00]} 33. e6 {[%emt 0:00:00]} 1-0

[Event "Bangabandhu Premier Div League 2023-24"]
[Site "Dhaka"]
[Date "2024.02.03"]
[Round "3.2"]
[White "Mohammad Nubairshah Shaikh"]
[Black "Puranik, Abhimanyu"]
[Result "1/2-1/2"]
[ECO "E05"]
[WhiteElo "2428"]
[BlackElo "2645"]
[Annotator "TA"]
[PlyCount "125"]
[EventDate "2024.02.01"]
[EventCountry "BAN"]
[SourceTitle "playchess.com"]
[Source "ChessBase"]
[SourceQuality "1"]
[TimeControl "40/5400+30:1800+30"]

{[%evp 43,125,0,0,0,10,17,88,99,91,96,134,83,85,89,98,107,107,114,114,110,108,107,100,107,107,75,114,118,132,132,123,115,183,97,177,135,125,106,114,122,107,62,63,26,83,76,81,70,74,71,78,80,78,58,75,63,79,79,64,0,52,46,99,99,104,89,92,93,93,100,95,0,114,0,0,0,0,0,0,0,0,0,0,0]} 1. Nf3 {[%emt 0:00:40]} d5 {[%emt 0:00:33]} 2. g3 {[%emt 0:00:37]} Nf6 {[%emt 0:00:22]} 3. Bg2 {[%emt 0:00:47]} e6 {[%emt 0:01:12]} 4. O-O {[%emt 0:00:34]} Be7 {[%emt 0:01:15]} 5. d4 {[%emt 0:01:18]} O-O {[%emt 0:00:18]} 6. c4 {[%emt 0:00:02]} dxc4 {[%emt 0:00:51]} 7. Qc2 {[%emt 0:00:01]} b5 {[%emt 0:00:49]} 8. a4 {[%emt 0:02:32]} b4 {[%emt 0:00:36]} 9. Nbd2 {[%emt 0:02:14]} b3 {[%emt 0:01:14]} 10. Qxc4 {[%emt 0:01:07]} Ba6 {[%emt 0:00:17]} 11. Qxb3 {[%emt 0:00:11]} Nd5 {[%emt 1:28:33]} 12. Nc4 {[%emt 0:29:07]} Nc6 {[%emt 0:00:00]} 13. Bd2 {[%emt 0:00:46]} Rb8 {[%emt 0:00:00]} 14. Qc2 {[%emt 0:00:15]} Ncb4 {[%emt 0:00:00]} 15. Bxb4 {[%emt 0:08:09]} Nxb4 {[%emt 0:00:00]} 16. Qc3 {[%emt 0:00:44]} c5 {[%emt 0:00:00]} 17. Rfd1 {[%emt 0:01:55]} Bf6 {[%emt 0:00:00]} 18. e3 {[%emt 0:48:31]} cxd4 {[%emt 0:00:00]} 19. Nxd4 {[%emt 0:00:00]} Qe7 {[%emt 0:04:00]} 20. Na5 {[%emt 0:00:00]} Rfc8 {[%emt 0:00:00]} 21. Nac6 {[%emt 0:00:00]} Nxc6 {[%emt 0:00:00]} 22. Nxc6 {[%emt 0:02:00]} (22. Bxc6 $2 Bb7 23. b4 Bxd4 24. Qxd4 Bxc6 $19 (24... Rxc6 $2 25. Qxa7 $19)) 22... Qe8 {[%emt 0:00:00]} 23. Qc5 {[%emt 0:00:00]} Rxb2 {[%emt 0:00:00]} 24. Rab1 {[%emt 0:01:00]} Be2 {[%emt 0:00:00]} (24... Rxb1 $1 $11 25. Rxb1 g5) 25. Rdc1 $16 {[%emt 0:00:00]} Rxb1 {[%emt 0:00:00]} 26. Rxb1 {[%emt 0:00:00]} g6 {[%emt 0:03:30]} 27. Qd6 {[%emt 0:00:00]} (27. Qxa7 $2 Rxc6 28. Bxc6 Qxc6 $19) (27. Rb7 $142) 27... a6 {[%emt 0:00:30]} 28. Re1 {[%emt 0:02:00]} Bc4 {[%emt 0:00:00]} 29. Rc1 {[%emt 0:00:00]} Bb3 {[%emt 0:00:00]} 30. Qb4 {[%emt 0:00:00]} Bd5 {[%emt 0:00:00]} 31. Bxd5 {[%emt 0:00:00]} exd5 {[%emt 0:00:00]} 32. Qd6 {[%emt 0:00:00]} Kg7 {[%emt 0:00:00]} 33. Qxd5 {[%emt 0:00:00]} Rc7 {[%emt 0:03:00]} 34. Rc4 {[%emt 0:00:00]} h5 {[%emt 0:00:00]} 35. Kg2 {[%emt 0:00:00]} Rd7 {[%emt 0:00:00]} 36. Qe4 {[%emt 0:00:00]} Qf8 {[%emt 0:00:00]} 37. Nb4 {[%emt 0:04:30]} a5 {[%emt 0:00:00]} (37... Qd8 $16) 38. Nc6 {[%emt 0:00:00]} (38. Nd5 $18) 38... Qa8 {[%emt 0:00:36]} (38... Rd1 $16) 39. Rc5 {[%emt 0:00:00]} Rd6 {[%emt 0:00:27]} 40. Qf3 {[%emt 0:01:30]} (40. Rxa5 $2 Qxc6 41. Qxc6 Rxc6 $19) 40... Qc8 {[%emt 0:01:05]} 41. h3 {[%emt 0:29:55]} (41. Nxa5 Qxc5 42. Nb7 Qd5 43. Nxd6 Qxd6 $19) 41... Qd7 {[%emt 0:31:52]} 42. g4 {[%emt 0:00:00]} (42. Nxa5 Qxa4 43. Nc4 Re6) 42... hxg4 {[%emt 0:00:00]} 43. hxg4 {[%emt 0:01:35]} Bh4 {[%emt 0:00:00]} (43... Qe8 $1 $11) 44. Rc2 $1 $16 {[%emt 0:00:00]} (44. Nxa5 $2 Rf6 (44... Qxa4 45. g5 $16) (44... Rd2 45. Kh3 $15) 45. Qe2 (45. Rd5 $2 Qc7 $19) 45... Rxf2+ (45... Qxa4 46. f3 $11) 46. Qxf2 Qxg4+ (46... Bxf2 $2 47. Kxf2 Qd2+ 48. Kf3 $19) 47. Kf1 Qd1+ (47... Bxf2 $2 48. Kxf2 Qb4 49. Rd5 $19) 48. Kg2 Bxf2 (48... Qg4+ $2 49. Kf1 $19) 49. Kxf2 Qd2+ (49... Qxa4 $2 50. Nc6 $19) 50. Kf3 Qd6 $19 (50... Qd1+ $2 51. Ke4 $19)) 44... Qe8 {[%emt 0:00:00] [#]} 45. Nd4 $1 {[%emt 0:00:00]} (45. Nxa5 $2 {perishes.} Rf6 46. Qd1 Qxa4 $19 (46... Qa8+ $2 47. Nc6 $19)) 45... Bf6 {[%emt 0:00:00]} 46. Rc6 {[%emt 0:00:00]} Qd7 {[%emt 0:00:00]} 47. Rxd6 {[%emt 0:00:00]} Qxd6 {[%emt 0:00:00]} 48. Qc6 {[%emt 0:00:00]} Qb4 {[%emt 0:00:00]} 49. Qd7 {[%emt 0:00:00]} Kg8 {[%emt 0:00:00]} 50. Qe8+ {[%emt 0:00:00]} Kg7 {[%emt 0:00:00]} 51. Qd7 {[%emt 0:00:00]} Kg8 $1 {[%emt 0:00:00]} 52. Nf3 {[%emt 0:00:00]} Qe4 {[%emt 0:00:00]} (52... Kg7 $14) 53. Kg3 $16 {[%emt 0:00:00]} Qb4 {[%emt 0:01:16]} 54. g5 {[%emt 0:00:59]} Bc3 {[%emt 0:01:06]} 55. Qe8+ {[%emt 0:02:53]} Kg7 {[%emt 0:00:02]} 56. Ne5 {[%emt 0:02:38]} Qb7 {[%emt 0:02:29] [#]} 57. Nd7 {[%emt 0:00:30]} (57. Ng4 $1 $16 {[%cal Rg4h6] Threatening mate with Nh6.} Qh1 58. Qc8) 57... Qc7+ {[%emt 0:00:23]} (57... Qb4 $11 {remains equal.}) 58. Kh3 {[%emt 0:00:00]} ({White has to play} 58. f4 $16 {Intending Qf8+ and mate.} Qd6 59. Ne5) 58... Qd6 $11 {[%emt 0:00:11]} 59. f4 {[%emt 0:00:19]} Qd5 {[%emt 0:01:08]} 60. Qf8+ {[%emt 0:00:33]} Kh7 {[%emt 0:00:03]} 61. Qh6+ {[%emt 0:00:28]} Kg8 {[%emt 0:00:04]} 62. Qf8+ {[%emt 0:00:10]} Kh7 {[%emt 0:00:03]} 63. Qh6+ {[%emt 0:00:27]} 1/2-1/2

[Event "Bangabandhu Premier Div League 2023-24"]
[Site "Dhaka"]
[Date "2024.02.03"]
[Round "3.2"]
[White "Pranav Vijay"]
[Black "Mohammed Abdul, Malek"]
[Result "1-0"]
[ECO "C84"]
[WhiteElo "2252"]
[BlackElo "2047"]
[Annotator "RC"]
[PlyCount "77"]
[EventDate "2024.02.01"]
[EventCountry "BAN"]
[SourceTitle "playchess.com"]
[Source "ChessBase"]
[SourceQuality "1"]
[TimeControl "40/5400+30:1800+30"]

1. e4 {[%emt 0:00:02]} e5 {[%emt 0:01:31]} 2. Nf3 {[%emt 0:00:09]} Nc6 {[%emt 0:00:10]} 3. Bb5 {[%emt 0:00:05]} a6 {[%emt 0:00:06]} 4. Ba4 {[%emt 0:00:08]} Nf6 {[%emt 0:00:34]} 5. O-O {[%emt 0:00:07]} Be7 {[%emt 0:00:21]} 6. d3 {[%emt 0:00:08]} b5 {[%emt 0:00:10]} 7. Bb3 {[%emt 0:00:06]} d6 {[%emt 0:00:15]} 8. c3 {[%emt 0:00:09]} O-O {[%emt 0:00:16]} 9. a4 {[%emt 0:00:04]} Bd7 {[%emt 0:03:11]} 10. Bc2 {[%emt 0:00:47]} Re8 {[%emt 0:03:11]} 11. Re1 {[%emt 0:00:10]} h6 {[%emt 0:00:24]} 12. h3 {[%emt 0:00:09]} Bf8 {[%emt 0:00:28]} 13. Nbd2 {[%emt 0:00:17]} Ne7 {[%emt 0:01:07]} 14. d4 {[%emt 0:00:43]} Ng6 {[%emt 0:00:14]} 15. Nf1 {[%emt 0:00:09]} Rb8 {[%emt 0:03:24]} 16. Ng3 {[%emt 0:02:23]} Qc8 {[%emt 0:03:34]} 17. axb5 {[%emt 0:18:11]} axb5 {[%emt 0:00:14]} 18. b4 {[%emt 0:02:14]} Ra8 {[%emt 0:03:27]} 19. Rxa8 {[%emt 0:00:47]} Qxa8 {[%emt 0:00:12]} 20. dxe5 {[%emt 0:00:12]} dxe5 {[%emt 0:04:48]} 21. Nh5 {[%emt 0:00:13]} Be6 {[%emt 0:04:16]} 22. Nxf6+ {[%emt 0:01:56]} gxf6 {[%emt 0:00:07]} 23. Nh2 {[%emt 0:01:30]} Qc6 {[%emt 0:09:32]} 24. Qf3 {[%emt 0:02:54]} Bg7 {[%emt 0:02:54]} 25. Ng4 {[%emt 0:01:11]} Bxg4 {[%emt 0:01:16]} 26. hxg4 {[%emt 0:00:10]} Nf8 {[%emt 0:02:07]} 27. Bb3 {[%emt 0:05:02]} Ne6 {[%emt 0:10:07]} 28. Bd5 {[%emt 0:00:42]} Qd7 {[%emt 0:00:36]} 29. Qf5 {[%emt 0:03:00]} c6 {[%emt 0:01:34]} 30. Bb3 {[%emt 0:00:02]} Qd3 {[%emt 0:11:29]} 31. Rd1 {[%emt 0:01:47]} Qe2 {[%emt 0:09:49]} 32. Be3 {[%emt 0:01:19]} Nf8 {[%emt 0:01:04]} 33. Qh5 {[%emt 0:01:47]} Re7 {[%emt 0:06:04]} 34. Rd8 {[%emt 0:02:00]} Qb2 {[%emt 0:08:30]} 35. Bc5 {[%emt 0:00:20]} Qxb3 {[%emt 0:05:02]} 36. Bxe7 {[%emt 0:00:25]} Qxc3 {[%emt 0:00:30]} 37. Qf5 {[%emt 0:00:19]} Qc1+ {[%emt 0:02:10]} 38. Kh2 {[%emt 0:00:02]} Qg5 {[%emt 0:00:22]} 39. g3 {[%emt 0:00:27]} 1-0

[Event "Bangabandhu Premier Div League 2023-24"]
[Site "Dhaka"]
[Date "2024.02.03"]
[Round "3.3"]
[White "Ter-Sahakyan, Samvel"]
[Black "Mayank Chakraborty"]
[Result "1-0"]
[ECO "C17"]
[WhiteElo "2649"]
[BlackElo "2409"]
[Annotator "TA"]
[PlyCount "91"]
[EventDate "2024.02.01"]
[EventCountry "BAN"]
[SourceTitle "playchess.com"]
[Source "ChessBase"]
[SourceQuality "1"]
[TimeControl "40/5400+30:1800+30"]

{[%evp 15,91,32,78,77,68,90,104,95,247,239,247,247,291,297,287,286,266,164,162,150,157,116,122,83,81,85,79,95,90,77,74,73,77,68,93,33,30,33,44,48,71,73,80,80,80,77,107,86,70,82,85,77,199,156,175,175,213,200,291,305,297,305,286,284,276,265,516,510,511,487,599,522,1099,1096,1036,1035,966,828]} 1. e4 {[%emt 0:00:04]} e6 {[%emt 0:00:10]} 2. d4 {[%emt 0:00:44]} d5 {[%emt 0:00:02]} 3. Nc3 {[%emt 0:01:07]} Bb4 {[%emt 0:00:09]} 4. e5 {[%emt 0:00:15]} c5 {[%emt 0:00:05]} 5. Bd2 {[%emt 0:02:26]} Ne7 {[%emt 1:32:34]} 6. a3 {[%emt 1:28:54]} Bxc3 {[%emt 0:00:00]} 7. Bxc3 {[%emt 0:00:30]} cxd4 {[%emt 0:00:00]} 8. Qxd4 {[%emt 0:00:00]} Nbc6 {[%emt 0:00:00] [#]} (8... b6 $14) 9. Qg4 $1 $16 {[%emt 0:01:00] White is more active.} Qb6 {[%emt 0:00:00]} 10. Nf3 {[%emt 0:00:30]} (10. Qxg7 Rg8 11. Qxh7 d4 $11) 10... Nf5 {[%emt 0:00:00]} 11. Bd3 {[%emt 0:00:30] Bxf5 would now be deadly. White is better.} O-O $2 {[%emt 0:00:00] [#]} (11... Nce7 $16) 12. Qh3 $1 $18 {[%emt 0:00:30]} d4 {[%emt 0:00:00]} 13. Bd2 {[%emt 0:00:00] Threatens to win with 0-0-0.} f6 {[%emt 0:00:00]} 14. g4 {[%emt 0:00:00]} Nxe5 {[%emt 0:00:00]} 15. Nxe5 {[%emt 0:00:00]} ({Less strong is} 15. gxf5 Nxd3+ 16. cxd3 e5 $16) 15... fxe5 {[%emt 0:00:00]} 16. gxf5 {[%emt 0:00:00]} exf5 {[%emt 0:00:00][%cal Oc8e6]} 17. Bc4+ {[%emt 0:02:30]} Be6 {[%emt 0:00:00]} 18. Bxe6+ {[%emt 0:00:00]} Qxe6 {[%emt 0:00:00]} 19. Qb3 {[%emt 0:00:00]} Qxb3 {[%emt 0:00:00]} 20. cxb3 {[%emt 0:00:00]} Rac8 {[%emt 0:00:00]} 21. Kd1 {[%emt 0:02:00]} Kf7 {[%emt 0:00:00]} 22. a4 {[%emt 0:00:00]} Ke6 {[%emt 0:00:00]} 23. Rg1 {[%emt 0:00:00]} Rf7 {[%emt 0:00:00]} 24. a5 {[%emt 0:01:30]} Rfc7 {[%emt 0:00:00]} 25. Rc1 {[%emt 0:00:00]} (25. Ra4 $16) 25... Rxc1+ $14 {[%emt 0:00:00]} 26. Bxc1 {[%emt 0:00:00][%mdl 4096] Endgame. KRB-KR} g6 {[%emt 0:10:30]} 27. Bd2 {[%emt 0:00:00]} Kd5 {[%emt 0:00:00]} 28. h4 {[%emt 0:02:00]} Rc6 {[%emt 0:00:00]} 29. b4 {[%emt 0:00:00]} Kc4 {[%emt 0:01:30]} 30. Rg3 {[%emt 0:01:00]} b5 {[%emt 0:00:30]} 31. axb6 {[%emt 0:00:30]} axb6 {[%emt 0:00:00]} 32. Ra3 {[%emt 0:00:30]} Rc7 {[%emt 0:00:00]} 33. Ke2 {[%emt 0:00:00]} Rd7 {[%emt 0:00:00]} (33... e4 $16 {is a better defense.}) 34. Ra6 {[%emt 0:00:00]} Kb5 {[%emt 0:00:05]} 35. Ra8 {[%emt 0:00:00]} Kc4 {[%emt 0:01:36]} 36. Rc8+ {[%emt 0:00:00]} Kb5 {[%emt 0:00:24]} (36... Kd5 {was necessary.} 37. Bg5 Ra7 38. Rd8+ Kc4) 37. Re8 $18 {[%emt 0:00:00]} e4 {[%emt 0:00:06]} 38. b3 {[%emt 0:00:00]} Kc6 {[%emt 0:01:00]} 39. Re6+ {[%emt 0:00:00]} Rd6 {[%emt 0:00:06]} 40. Re7 {[%emt 0:00:00]} h5 $2 {[%emt 0:01:09]} (40... d3+ 41. Ke3 h5) 41. Bf4 {[%emt 0:26:28] White is clearly winning.} d3+ {[%emt 0:30:32]} 42. Kd2 {[%emt 0:01:09]} Rd4 {[%emt 0:00:24]} 43. Re6+ {[%emt 0:01:08]} Kb5 {[%emt 0:00:15]} 44. Be3 {[%emt 0:00:00]} Rxb4 {[%emt 0:00:00]} 45. Kc3 {[%emt 0:00:00]} ({Not} 45. Bxb6 Rxb3 46. Be3 (46. Rxg6 Rb2+ 47. Ke3 Re2+ 48. Kf4 d2 $11) 46... Kc4 $14) 45... Ka5 {[%emt 0:01:53]} 46. Re8 {[%emt 0:00:00] Weighted Error Value: White=0.14 (very precise) /Black=0.36.  Mistake:       	White=1     	Black=4      Inaccurate:     	White=2     	Black=2      OK:         	White=16    	Black=10     Best:        	White=2     	Black=1      Strong:       	White=1     	---} 1-0